bitfinex-derivatives/quotes_SOLF0:USTF0_20241011
["timestamp","ask_amount","ask_price","bid_price","bid_amount"]
[1728657829162,3.4715,144.08,144.06,3.4718]
[1728657829364,22.17,144.1,144.05,0.12502]
[1728657829663,16.65,144.08,144.05,0.12502]
[1728657829968,3.4719,144.07,144.05,0.12502]
[1728657830664,16.65,144.08,144.05,0.12502]
[1728657830966,3.4717,144.07,144.05,0.12502]
[1728657831465,22.17,144.1,144.05,0.12502]
[1728657831657,3.4719,144.06,144.05,0.12502]
[1728657831963,16.65,144.06,143.99,1.51882]
[1728657832161,3.4729,144.03,143.99,0.12502]
[1728657832768,3.4729,144.03,144.0,3.4732]
[1728657833869,16.65,144.04,143.99,3.59852]
[1728657833870,3.473,144.02,143.99,3.59852]
[1728657834569,3.4728,144.03,144.0,3.4733]
[1728657834969,3.4729,144.02,143.99,3.59852]
[1728657835270,3.4729,144.02,143.99,0.12502]
[1728657835769,8.9925,144.04,144.02,3.4729]
[1728657836064,8.9925,144.04,143.99,0.12502]
[1728657836868,8.9925,144.04,144.01,3.473]
[1728657839069,3.4727,144.03,144.01,3.473]
[1728657839464,19.4783,144.06,144.03,3.4727]
[1728657839663,18.0521,144.06,143.99,0.12502]
[1728657840064,3.4722,144.05,144.03,3.4727]
[1728657840269,3.4722,144.05,143.99,0.12502]
[1728657840270,22.13,144.08,143.99,16.77502]
[1728657840669,3.4721,144.06,143.99,16.77502]
[1728657841268,22.13,144.08,144.02,3.4727]
[1728657841269,3.4722,144.05,144.02,3.4727]
[1728657841769,22.13,144.08,143.99,16.77502]
[1728657841964,3.4721,144.06,144.03,3.4725]
[1728657845076,22.13,144.08,143.99,16.77502]
[1728657845279,22.13,144.08,144.0,5.48]
[1728657845770,3.4718,144.07,144.04,3.4723]
[1728657845968,22.13,144.08,144.04,3.4723]
[1728657846374,3.4718,144.07,144.0,5.48]
[1728657846773,22.13,144.08,144.0,5.48]
[1728657846975,3.472,144.06,144.03,3.4725]
[1728657847170,16.65,144.08,144.0,5.48]
[1728657847568,16.65,144.08,144.04,3.4723]
[1728657848674,3.4718,144.07,144.04,3.4723]
[1728657850985,16.65,144.08,144.0,5.48]
[1728657851180,3.4722,144.05,144.0,5.48]
[1728657851685,3.4721,144.06,144.0,5.48]
[1728657852178,3.4721,144.06,144.03,3.4725]
[1728657852378,3.4721,144.06,144.0,5.48]
[1728657852585,14.1421,144.06,144.01,10.67]
[1728657852883,10.67,144.05,144.03,3.4724]
[1728657853286,10.67,144.05,144.0,16.15]
[1728657854388,14.1423,144.05,144.03,3.4725]
[1728657854786,10.67,144.04,144.0,5.48]
[1728657854984,10.67,144.02,144.01,3.4731]
[1728657855185,10.67,144.02,143.99,0.12502]
[1728657855382,10.67,144.01,143.99,0.12502]
[1728657855577,10.67,144.01,143.99,3.59852]
[1728657856176,10.67,144.01,144.0,3.4734]
[1728657857188,3.473,144.02,144.0,3.4734]
[1728657857488,10.67,144.03,144.01,3.473]
[1728657857987,14.1427,144.03,144.01,3.473]
[1728657858986,8.88736736,144.06,143.99,10.79502]
[1728657858987,9.6414,144.1,144.02,3.4729]
[1728657859184,10.67,144.06,144.01,10.67]
[1728657859583,10.67,144.06,144.03,3.4725]
[1728657859782,1.4236,144.09,144.01,10.67]
[1728657859985,14.1416,144.08,144.05,3.472]
[1728657860284,14.1416,144.08,144.02,10.67]
[1728657860592,3.4716,144.08,144.05,3.472]
[1728657861193,3.4706,144.12,144.04,16.66]
[1728657861490,3.4706,144.12,144.05,5.48]
[1728657861990,3.4706,144.12,144.09,3.4712]
[1728657862492,3.59582,144.11,144.08,3.4713]
[1728657863090,3.4712,144.1,144.05,5.48]
[1728657863279,0.12502,144.11,144.05,5.48]
[1728657863687,3.4714,144.09,144.06,3.4718]
[1728657864190,3.4711,144.1,144.07,3.4716]
[1728657864392,0.12502,144.11,144.05,5.48]
[1728657864787,3.4713,144.09,144.06,3.4719]
[1728657865891,3.4713,144.09,144.05,5.48]
[1728657866092,3.4713,144.09,144.07,3.4717]
[1728657867691,3.4711,144.1,144.07,3.4717]
[1728657868295,3.4711,144.1,144.07,3.4715]
[1728657868498,0.12502,144.11,144.07,3.4715]
[1728657868792,3.4713,144.09,144.05,5.48]
[1728657868992,0.12502,144.11,144.06,3.4718]
[1728657869895,16.66,144.1,144.02,2.7263]
[1728657870097,3.4719,144.07,144.04,3.4723]
[1728657870398,5.46,144.09,144.04,3.4723]
[1728657870597,3.472,144.06,144.03,3.4726]
[1728657870798,16.66,144.06,143.99,5.58502]
[1728657870999,3.4725,144.04,144.01,3.4729]
[1728657871292,2.7334,144.1,144.01,16.66]
[1728657871496,2.7334,144.1,144.03,16.66]
[1728657871698,3.4717,144.08,144.05,3.4722]
[1728657871895,2.7334,144.1,144.03,16.66]
[1728657872199,3.4713,144.09,144.05,3.4722]
[1728657872400,2.7334,144.1,144.03,16.66]
[1728657872598,2.7334,144.1,143.99,5.58502]
[1728657872599,19.3934,144.1,144.01,16.66]
[1728657874303,3.4717,144.07,144.05,3.472]
[1728657874503,19.3934,144.1,144.01,16.66]
[1728657875404,3.4716,144.08,144.05,3.4721]
[1728657875803,3.4716,144.08,144.01,16.66]
[1728657876005,0.12502,144.11,144.06,3.4718]
[1728657876006,3.4714,144.09,144.06,3.4718]
[1728657876299,16.66,144.08,144.02,2.628]
[1728657876704,3.4718,144.07,144.05,3.4721]
[1728657877102,16.66,144.08,144.02,2.628]
[1728657877302,3.472,144.06,144.03,3.4725]
[1728657878205,3.472,144.06,144.02,2.628]
[1728657878404,3.472,144.06,144.04,3.4724]
[1728657878605,5.46,144.08,144.02,2.628]
[1728657878814,5.46,144.08,144.06,3.4718]
[1728657879898,5.46,144.08,144.05,3.472]
[1728657880510,8.9316,144.08,144.05,3.472]
[1728657881110,3.4716,144.08,144.05,3.472]
[1728657881312,3.59592,144.11,144.08,3.4713]
[1728657881516,3.59592,144.11,144.04,16.66]
[1728657881812,3.59592,144.11,144.04,18.0868]
[1728657882812,3.4712,144.09,144.07,3.4716]
[1728657883815,3.4712,144.09,144.04,1.4268]
[1728657884019,3.4712,144.09,144.06,3.4719]
[1728657884219,3.4715,144.08,144.06,3.4719]
[1728657884419,16.66,144.1,144.04,3.4723]
[1728657884621,5.46,144.09,144.04,3.4723]
[1728657884920,3.4718,144.07,144.04,3.4723]
[1728657885118,3.4718,144.07,144.02,8.088]
[1728657885318,3.4718,144.07,144.05,3.4722]
[1728657886123,5.46,144.09,144.02,8.088]
[1728657886318,3.4719,144.07,144.04,3.4724]
[1728657886616,5.46,144.09,144.0,5.46]
[1728657886821,18.0126,144.08,144.02,3.4727]
[1728657887224,19.4041,144.08,144.02,3.4727]
[1728657887422,3.4724,144.05,144.02,3.4727]
[1728657887719,19.4041,144.08,144.02,3.4727]
[1728657888618,3.4724,144.05,144.02,3.4727]
[1728657888819,19.4041,144.08,144.02,3.4727]
[1728657889422,3.4724,144.04,144.02,3.4727]
[1728657890721,19.4041,144.08,144.0,5.46]
[1728657890927,3.472,144.06,144.03,3.4725]
[1728657891228,3.472,144.06,144.0,5.46]
[1728657891526,3.472,144.06,144.03,3.4725]
[1728657891723,3.4713,144.09,144.01,16.66]
[1728657891931,3.4713,144.09,144.01,19.3453]
[1728657892228,3.4716,144.08,144.01,19.3453]
[1728657893830,0.12502,144.11,144.01,19.3453]
[1728657893831,3.4721,144.06,144.01,2.6853]
[1728657894531,3.4718,144.07,144.04,3.4722]
[1728657896233,22.12,144.08,144.01,2.6853]
[1728657896432,3.4721,144.06,144.03,3.4725]
[1728657896628,22.12,144.08,144.03,3.4725]
[1728657897232,3.4721,144.06,144.03,3.4725]
[1728657897429,22.12,144.08,144.03,3.4725]
[1728657898334,16.66,144.06,144.02,3.4728]
[1728657898633,16.66,144.06,143.99,0.12502]
[1728657898830,3.4726,144.04,144.01,3.473]
[1728657899637,3.4721,144.06,144.0,16.66]
[1728657900135,3.4721,144.06,144.04,3.4723]
[1728657900331,8.9315,144.08,144.02,16.66]
[1728657900533,5.46,144.08,144.02,16.66]
[1728657900733,5.46,144.08,144.03,1.3102]
[1728657901137,5.46,144.08,144.04,3.4723]
[1728657901334,5.46,144.08,144.03,1.3102]
[1728657901731,3.472,144.06,144.04,3.4723]
[1728657901939,22.12,144.08,144.02,5.48]
[1728657902238,16.66,144.04,143.97,1.3607]
[1728657902434,22.14,144.04,143.99,3.59852]
[1728657902943,3.473,144.02,143.99,3.59852]
[1728657903235,22.14,144.04,143.99,0.12502]
[1728657903427,3.4734,144.0,143.99,0.12502]
[1728657903630,16.66,144.02,143.99,0.12502]
[1728657903838,0.12502,144.11,144.01,16.66]
[1728657904029,0.12502,144.11,144.07,16.66]
[1728657904232,0.12502,144.11,144.1,3.471]
[1728657906733,0.12502,144.11,144.04,5.48]
[1728657907137,5.60502,144.11,144.04,5.48]
[1728657907435,3.471,144.1,144.04,5.48]
[1728657907642,20.131,144.1,144.02,4.0349]
[1728657907840,20.131,144.1,144.06,3.4718]
[1728657908437,3.4714,144.09,144.05,3.472]
[1728657908841,20.19273669,144.1,144.05,3.472]
[1728657909138,20.19273669,144.1,143.99,0.12502]
[1728657909139,16.66,144.09,143.99,0.12502]
[1728657909339,16.66,144.07,143.99,5.60502]
[1728657909535,5.48,144.06,143.99,22.26502]
[1728657909731,5.48,144.06,144.04,3.4724]
[1728657909936,5.48,144.06,143.99,22.26502]
[1728657910143,5.48,144.06,144.03,3.4725]
[1728657910440,22.14,144.06,143.99,5.60502]
[1728657910942,22.14,144.06,144.02,3.4727]
[1728657910943,25.6121,144.06,144.02,3.4727]
[1728657912234,25.6121,144.06,143.99,5.60502]
[1728657912436,8.9521,144.06,143.99,22.26502]
[1728657912641,8.9521,144.06,144.03,3.4725]
[1728657914340,5.48,144.06,144.05,3.4722]
[1728657919246,22.14,144.06,143.99,0.12502]
[1728657919443,22.14,144.06,143.93,0.12502]
[1728657919444,16.66,144.0,143.93,0.12502]
[1728657919750,16.66,143.98,143.93,0.12502]
[1728657920046,20.134,143.98,143.95,3.4746]
[1728657920645,16.66,143.98,143.93,0.12502]
[1728657921437,3.474,143.98,143.93,0.12502]
[1728657921946,16.66,143.99,143.93,0.12502]
[1728657922143,3.474,143.98,143.93,0.12502]
[1728657923047,3.474,143.98,143.95,3.4746]
[1728657923847,16.66,143.97,143.93,0.12502]
[1728657924143,5.48,143.96,143.93,0.12502]
[1728657924347,22.14,143.96,143.93,0.12502]
[1728657924743,5.48,143.95,143.93,0.12502]
[1728657926043,8.9547,143.95,143.93,0.12502]
[1728657926949,3.4747,143.95,143.93,0.12502]
[1728657927152,8.9547,143.95,143.93,0.12502]
[1728657927658,16.66,143.96,143.93,0.12502]
[1728657927659,4.0344,144.0,143.93,0.12502]
[1728657927945,3.4739,143.98,143.95,3.4745]
[1728657928143,22.14,143.99,143.93,0.12502]
[1728657928344,3.4741,143.98,143.95,3.4746]
[1728657928551,5.68,143.98,143.93,0.12502]
[1728657928743,16.66,143.99,143.93,0.12502]
[1728657928943,22.34,143.99,143.93,0.12502]
[1728657930452,3.4739,143.98,143.95,3.4745]
[1728657931362,22.34,143.99,143.93,0.12502]
[1728657931649,22.34,143.99,143.94,3.4747]
[1728657932049,3.4741,143.97,143.94,3.4747]
[1728657933443,16.66,143.97,143.93,0.12502]
[1728657933643,16.66,143.96,143.93,0.12502]
[1728657934348,3.4747,143.95,143.93,0.12502]
[1728657934855,20.1345,143.96,143.93,3.59992]
[1728657935151,16.66,143.96,143.93,0.12502]
[1728657935553,9.1548,143.95,143.93,0.12502]
[1728657936151,5.68,143.95,143.93,0.12502]
[1728657936452,3.4748,143.94,143.93,0.12502]
[1728657940854,20.1348,143.94,143.93,0.12502]
[1728657946652,16.66,143.94,143.87,0.12502]
[1728657946865,20.1357,143.91,143.88,3.4761]
[1728657947062,20.1357,143.91,143.87,0.12502]
[1728657947367,20.1357,143.91,143.88,3.4761]
[1728657948058,3.4758,143.9,143.88,3.4761]
[1728657948467,16.66,143.91,143.88,3.4761]
[1728657948662,3.4758,143.9,143.88,3.4761]
[1728657948862,3.4758,143.9,143.87,0.12502]
[1728657949062,22.34,143.91,143.87,0.12502]
[1728657949365,20.1362,143.89,143.87,0.12502]
[1728657950367,16.66,143.89,143.87,0.12502]
[1728657950566,20.1363,143.88,143.87,0.12502]
[1728657954978,3.4766,143.86,143.83,3.477]
[1728657955177,22.34,143.86,143.83,3.477]
[1728657955372,22.34,143.86,143.79,2.8009]
[1728657955578,16.66,143.84,143.79,2.8009]
[1728657956076,20.137,143.84,143.81,3.60252]
[1728657956276,20.137,143.84,143.76,4.77956885]
[1728657956277,16.66,143.82,143.75,0.12502]
[1728657956480,16.66,143.8,143.75,0.12502]
[1728657956679,3.4781,143.79,143.76,3.4786]
[1728657957180,3.4787,143.77,143.75,0.12502]
[1728657958271,20.1387,143.77,143.75,0.12502]
[1728657960478,16.66,143.79,143.75,0.12502]
[1728657960674,16.66,143.79,143.77,3.4785]
[1728657960875,9.098,143.8,143.77,3.4785]
[1728657961472,22.28,143.81,143.76,3.4786]
[1728657961676,22.28,143.81,143.75,0.12502]
[1728657961883,16.66,143.79,143.75,0.12502]
[1728657962180,16.66,143.77,143.75,0.12502]
[1728657962685,3.4788,143.76,143.75,0.12502]
[1728657964081,22.28,143.79,143.75,0.12502]
[1728657964383,16.66,143.79,143.75,0.12502]
[1728657964575,5.62,143.8,143.75,0.12502]
[1728657965182,5.62,143.82,143.8,3.4779]
[1728657965482,5.62,143.82,143.75,0.12502]
[1728657965683,9.0975,143.82,143.79,3.4781]
[1728657966289,5.62,143.82,143.79,3.4781]
[1728657966489,3.4776,143.81,143.79,3.4781]
[1728657966894,25.7572,143.83,143.8,3.4777]
[1728657967587,22.28,143.83,143.76,2.7706]
[1728657967788,22.28,143.83,143.81,3.4775]
[1728657967988,22.28,143.83,143.76,2.7706]
[1728657968284,3.4774,143.82,143.79,3.4779]
[1728657968489,3.4774,143.82,143.76,2.7706]
[1728657968791,25.7573,143.83,143.8,3.4778]
[1728657969889,20.1373,143.83,143.8,3.4778]
[1728657970087,22.28,143.85,143.83,3.4771]
[1728657970393,16.66,143.85,143.83,3.4771]
[1728657970985,16.66,143.85,143.8,3.4778]
[1728657971188,16.78502,143.87,143.79,16.66]
[1728657971692,16.78502,143.87,143.85,3.4766]
[1728657971887,16.78502,143.87,143.79,16.66]
[1728657972086,0.12502,143.87,143.79,16.66]
[1728657972489,16.66,143.86,143.78,5.62]
[1728657973190,0.12502,143.87,143.79,16.66]
[1728657973794,0.12502,143.87,143.81,16.66]
[1728657973996,0.12502,143.87,143.82,5.62]
[1728657974197,0.12502,143.87,143.82,6.9737]
[1728657974598,0.12502,143.87,143.86,3.4764]
[1728657975294,0.12502,143.87,143.84,3.4767]
[1728657975595,0.12502,143.87,143.82,8.2906]
[1728657975996,0.12502,143.87,143.86,3.4764]
[1728657976995,0.12502,143.87,143.85,3.4765]
[1728657981496,0.12502,143.87,143.77,4.85806987]
[1728657981800,16.66,143.84,143.78,8.3049]
[1728657982292,16.66,143.82,143.78,6.9381]
[1728657982493,16.66,143.8,143.75,0.12502]
[1728657982698,16.66,143.8,143.75,5.74502]
[1728657983001,16.66,143.8,143.77,3.4785]
[1728657983194,16.66,143.8,143.75,0.12502]
[1728657983497,16.66,143.78,143.75,0.12502]
[1728657983993,16.66,143.8,143.75,0.12502]
[1728657984198,22.28,143.82,143.75,0.12502]
[1728657984694,16.66,143.78,143.75,0.12502]
[1728657985193,16.66,143.78,143.76,3.4788]
[1728657986191,20.1384,143.78,143.75,0.12502]
[1728657986491,20.1384,143.78,143.75,3.60402]
[1728657986697,3.4787,143.77,143.75,0.12502]
[1728657986897,3.4787,143.77,143.75,3.60412]
[1728657987193,16.66,143.76,143.75,3.60412]
[1728657987394,3.0,143.75,143.59,0.12518]
[1728657987598,16.66,143.68,143.61,2.6998]
[1728657988004,20.1409,143.68,143.61,2.6998]
[1728657988200,16.66,143.68,143.61,2.6998]
[1728657988698,3.4812,143.67,143.63,3.60682]
[1728657989605,5.62,143.71,143.63,0.12502]
[1728657989801,16.66,143.68,143.63,0.12502]
[1728657990304,16.66,143.68,143.64,3.4817]
[1728657990902,16.66,143.68,143.63,0.12502]
[1728657991195,3.481,143.67,143.63,3.60692]
[1728657991804,20.1409,143.68,143.64,3.4817]
[1728657992005,16.66,143.68,143.63,0.12502]
[1728657992205,16.66,143.66,143.63,0.12502]
[1728657992412,16.66,143.66,143.63,3.60692]
[1728657992608,16.66,143.66,143.63,0.12502]
[1728657993008,20.1413,143.66,143.63,0.12502]
[1728657993409,16.66,143.66,143.63,0.12502]
[1728657993709,5.76,143.67,143.64,3.4815]
[1728657995510,5.76,143.67,143.65,3.4815]
[1728657996607,16.66,143.68,143.63,0.12502]
[1728657996808,16.66,143.69,143.63,0.12502]
[1728657997111,16.66,143.69,143.63,5.88502]
[1728657997704,16.66,143.71,143.63,5.88502]
[1728657997908,16.66,143.71,143.68,3.4805]
[1728657998611,16.66,143.71,143.63,5.88502]
[1728657998914,16.66,143.73,143.64,16.66]
[1728657999315,16.78502,143.75,143.66,16.66]
[1728657999502,0.12502,143.75,143.67,8.492]
[1728657999707,0.12502,143.75,143.68,18.0587]
[1728657999905,16.78502,143.75,143.69,3.44817331]
[1728658000205,3.4797,143.73,143.68,1.3987]
[1728658000502,16.66,143.74,143.7,3.4801]
[1728658000705,3.4798,143.72,143.7,3.4801]
[1728658000905,16.66,143.74,143.7,3.4801]
[1728658001214,20.1394,143.74,143.7,3.4801]
[1728658001914,20.1394,143.74,143.68,1.3987]
[1728658002116,20.1394,143.74,143.71,3.48]
[1728658002409,0.12502,143.75,143.68,1.3987]
[1728658002615,0.12502,143.75,143.74,3.4793]
[1728658002812,0.12502,143.75,143.69,16.66]
[1728658003012,0.12502,143.75,143.73,3.4794]
[1728658004317,3.60432,143.75,143.72,3.4797]
[1728658005217,0.12502,143.75,143.73,3.4795]
[1728658005411,0.12502,143.75,143.69,16.66]
[1728658005812,0.12502,143.75,143.74,3.4793]
[1728658006215,0.12502,143.75,143.71,5.76]
[1728658007312,0.12502,143.75,143.73,3.4795]
[1728658007510,0.12502,143.75,143.71,5.76]
[1728658008112,0.12502,143.75,143.72,3.4796]
[1728658008113,3.60422,143.75,143.72,3.4796]
[1728658008616,0.12502,143.75,143.73,3.4795]
[1728658009418,0.12502,143.75,143.71,5.76]
[1728658009618,3.60412,143.75,143.72,3.4797]
[1728658009808,3.60412,143.75,143.71,5.76]
[1728658010013,3.60412,143.75,143.72,3.4797]
[1728658012316,3.60412,143.75,143.73,3.4795]
[1728658014617,3.60412,143.75,143.72,3.4797]
[1728658015717,0.12502,143.75,143.74,3.4793]
[1728658019512,0.12502,143.81,143.74,3.39847297]
[1728658019725,3.4781,143.8,143.73,5.64]
[1728658020111,3.4781,143.8,143.77,3.4784]
[1728658020320,3.4781,143.8,143.74,3.41016106]
[1728658020920,0.12502,143.81,143.73,22.3]
[1728658021118,0.12502,143.81,143.74,6.29038603]
[1728658021512,0.12502,143.81,143.76,3.4788]
[1728658021513,16.78502,143.81,143.76,3.4788]
[1728658022219,3.4782,143.79,143.76,3.4788]
[1728658023017,3.478,143.8,143.77,3.4784]
[1728658023220,3.478,143.8,143.74,2.7317]
[1728658024019,0.12502,143.81,143.76,16.66]
[1728658024320,0.12502,143.81,143.8,3.4779]
[1728658025619,0.12502,143.87,143.85,3.4765]
[1728658025924,0.12502,143.87,143.81,5.64]
[1728658026417,0.12502,143.87,143.86,3.4764]
[1728658026922,0.12502,143.93,143.9,3.4753]
[1728658027623,3.59992,143.93,143.89,3.4756]
[1728658027922,0.12502,143.93,143.85,5.64]
[1728658028328,3.4752,143.92,143.89,3.4756]
[1728658028718,0.12502,143.93,143.85,5.64]
[1728658028917,3.4752,143.91,143.88,3.4759]
[1728658029118,0.12502,143.93,143.85,5.64]
[1728658029420,3.59982,143.93,143.9,3.4754]
[1728658030232,0.12502,143.93,143.85,5.64]
[1728658030417,16.66,143.92,143.85,5.64]
[1728658030815,3.4756,143.9,143.87,3.4761]
[1728658031116,16.66,143.92,143.85,5.64]
[1728658031520,3.4758,143.89,143.86,3.4763]
[1728658032320,3.4755,143.9,143.87,3.476]
[1728658032525,16.66,143.92,143.84,5.64]
[1728658032726,16.66,143.92,143.84,22.3]
[1728658032926,16.66,143.92,143.89,3.4757]
[1728658033325,0.12502,143.93,143.89,3.4757]
[1728658033827,3.4751,143.92,143.89,3.4757]
[1728658034727,0.12502,143.93,143.89,3.4757]
[1728658034929,3.4752,143.91,143.89,3.4757]
[1728658036931,3.4751,143.92,143.89,3.4757]
[1728658037127,0.12502,143.93,143.9,3.4753]
[1728658037526,0.12502,143.93,143.86,16.66]
[1728658037727,0.12502,143.93,143.88,5.64]
[1728658037922,3.4751,143.92,143.88,5.64]
[1728658038227,0.12502,143.93,143.88,5.64]
[1728658039928,0.12502,143.93,143.91,3.475]
[1728658041338,0.12502,143.93,143.88,5.64]
[1728658041633,3.59992,143.93,143.88,5.64]
[1728658041935,3.59992,143.93,143.9,3.4753]
[1728658042631,3.475,143.92,143.9,3.4753]
[1728658042833,16.66,143.92,143.83,16.66]
[1728658043033,16.66,143.92,143.82,4.87335475]
[1728658043034,16.66,143.9,143.82,1.3443]
[1728658043233,16.66,143.9,143.83,5.64]
[1728658043934,16.66,143.9,143.85,3.4766]
[1728658044336,3.476,143.88,143.85,3.4766]
[1728658044735,16.66,143.9,143.85,3.4766]
[1728658045330,16.66,143.9,143.82,10.3772442]
[1728658045534,22.3,143.92,143.83,16.66]
[1728658046044,3.4754,143.91,143.88,3.4758]
[1728658046243,3.4754,143.91,143.83,16.66]
[1728658046439,5.76502,143.93,143.85,16.66]
[1728658046639,3.4751,143.92,143.89,3.4756]
[1728658047750,0.12502,143.93,143.86,5.64]
[1728658048046,3.59992,143.93,143.86,5.64]
[1728658048346,0.12502,143.93,143.92,3.475]
[1728658049141,0.12502,143.93,143.91,3.4751]
[1728658049943,3.59972,143.93,143.91,3.4751]
[1728658050448,3.475,143.92,143.9,3.4753]
[1728658051048,3.59982,143.93,143.9,3.4753]
[1728658051449,3.59982,143.93,143.86,5.64]
[1728658051450,16.66,143.92,143.86,5.64]
[1728658051647,3.4753,143.91,143.88,3.4758]
[1728658051848,16.66,143.92,143.88,3.4758]
[1728658052547,16.66,143.92,143.9,3.4754]
[1728658053055,0.12502,143.93,143.91,3.475]
[1728658053251,0.12502,143.93,143.86,22.3]
[1728658054456,0.12502,143.93,143.91,3.475]
[1728658056157,3.59972,143.93,143.91,3.475]
[1728658057258,0.12502,143.93,143.91,3.475]
[1728658058558,3.59982,143.93,143.91,3.475]
[1728658059454,3.59982,143.93,143.9,3.4753]
[1728658059856,0.12502,143.93,143.86,22.3]
[1728658060454,0.12502,143.93,143.88,16.66]
[1728658060758,0.12502,143.93,143.92,3.475]
[1728658061060,0.12502,143.93,143.92,9.155]
[1728658062060,0.12502,143.99,143.97,3.4736]
[1728658062854,3.59832,143.99,143.97,3.4736]
[1728658064254,0.12502,143.99,143.92,5.68]
[1728658064456,16.66,143.97,143.92,5.68]
[1728658064955,3.4742,143.96,143.93,3.4746]
[1728658065349,16.66,143.97,143.92,3.4749]
[1728658065556,3.4747,143.94,143.91,5.68]
[1728658065862,3.4747,143.94,143.92,3.4749]
[1728658066665,20.1344,143.95,143.92,3.4749]
[1728658066960,16.66,143.97,143.91,5.68]
[1728658067457,3.474,143.96,143.91,5.68]
[1728658067657,16.66,143.97,143.91,5.68]
[1728658067961,20.1338,143.97,143.91,5.68]
[1728658068163,22.46502,143.99,143.91,5.68]
[1728658068460,3.4737,143.98,143.95,3.4741]
[1728658068962,3.4737,143.98,143.91,5.68]
[1728658069365,3.4737,143.98,143.96,3.4739]
[1728658069562,25.93842,143.99,143.96,3.4739]
[1728658069757,22.46502,143.99,143.96,3.4739]
[1728658069963,22.46502,143.99,143.91,5.68]
[1728658069964,22.46502,143.99,143.95,3.4741]
[1728658070164,3.4738,143.97,143.95,3.4741]
[1728658070866,22.46502,143.99,143.95,3.4741]
[1728658071168,3.4736,143.98,143.96,3.474]
[1728658071463,3.4736,143.98,143.91,5.68]
[1728658071664,16.66,143.98,143.92,9.1547]
[1728658071861,16.66,143.98,143.92,5.68]
[1728658072061,16.66,143.97,143.89,4.1504]
[1728658072258,16.66,143.97,143.91,3.4751]
[1728658072664,3.4747,143.94,143.91,3.4751]
[1728658072968,3.4747,143.94,143.92,3.4749]
[1728658073870,3.4749,143.93,143.9,3.4753]
[1728658074062,16.66,143.95,143.9,3.4753]
[1728658074259,16.66,143.95,143.88,5.68]
[1728658074462,3.4749,143.93,143.9,3.4753]
[1728658074665,22.34,143.95,143.88,5.68]
[1728658075070,22.34,143.95,143.9,3.4753]
[1728658075763,3.4749,143.93,143.9,3.4753]
[1728658075963,22.34,143.95,143.88,5.68]
[1728658076169,3.4745,143.94,143.92,3.4748]
[1728658076369,16.66,143.97,143.88,5.68]
[1728658076568,16.66,143.97,143.93,3.4746]
[1728658076772,3.4741,143.96,143.93,3.4746]
[1728658077372,3.4743,143.95,143.93,3.4746]
[1728658078974,3.4743,143.95,143.92,3.4748]
[1728658079770,3.4745,143.94,143.92,3.4748]